bitfinex/quotes_SOLUSD_20250616
["timestamp","ask_amount","ask_price","bid_price","bid_amount"]
[1750071005648,26.0,156.27,156.24,6.40040962]
[1750071005946,6.31202833,156.25,156.24,6.40040962]
[1750071007332,6.31202833,156.25,156.24,6.68473276]
[1750071008650,26.0,156.27,156.24,6.68473276]
[1750071008854,6.31202833,156.25,156.24,6.68473276]
[1750071012836,26.0,156.27,156.24,22.68575682]
[1750071013055,6.31202833,156.26,156.25,0.28432314]
[1750071015057,6.31202833,156.26,156.25,6.68432314]
[1750071015237,26.0,156.29,156.25,22.68432314]
[1750071015432,6.31202833,156.26,156.25,22.68432314]
[1750071015847,26.0,156.29,156.25,22.68432314]
[1750071016047,6.31202833,156.26,156.25,22.68432314]
[1750071017745,6.31202833,156.26,156.25,41.333972]
[1750071020239,6.31202833,156.27,156.26,18.933972]
[1750071020630,154.89622833,156.32,156.27,0.28432314]
[1750071020833,6.31202833,156.28,156.27,0.28432314]
[1750071021832,6.31202833,156.28,156.27,25.3331529]
[1750071023353,26.0,156.31,156.27,41.33110516]
[1750071023748,6.31202833,156.28,156.27,41.33110516]
[1750071024646,26.0,156.31,156.27,41.33110516]
[1750071024862,6.31202833,156.28,156.27,41.33110516]
[1750071030142,26.0,156.31,156.27,41.33110516]
[1750071030454,6.31202833,156.28,156.27,41.33110516]
[1750071032483,26.0,156.31,156.29,6.39836201]
[1750071032641,6.31202833,156.3,156.29,6.68268515]
[1750071035873,148.5842,156.32,156.29,22.67859019]
[1750071036176,6.31202833,156.31,156.29,22.67859019]
[1750071037077,6.31202833,156.31,156.29,22.67859019]
[1750071037680,6.31202833,156.3,156.29,41.32823905]
[1750071039466,26.0,156.33,156.29,41.32823905]
[1750071039850,6.31202833,156.3,156.29,41.32823905]
[1750071040779,6.31202833,156.31,156.29,41.32823905]
[1750071042573,6.31202833,156.31,156.3,18.64964886]
[1750071042772,26.0,156.33,156.31,0.28432314]
[1750071042773,6.31202833,156.32,156.31,0.28432314]
[1750071043682,26.0,156.33,156.31,6.68186648]
[1750071043911,32.31202833,156.33,156.31,6.68186648]
[1750071044171,26.0,156.33,156.31,6.68186648]
[1750071044350,6.31202833,156.32,156.31,25.33151534]
[1750071045954,26.0,156.33,156.31,25.33151534]
[1750071046181,6.31202833,156.32,156.31,25.33151534]
[1750071047693,6.31202833,156.32,156.31,41.32537369]
[1750071050071,26.0,156.34,156.31,41.32537369]
[1750071050281,6.31202833,156.32,156.31,41.32537369]
[1750071053689,26.0,156.34,156.33,0.28432314]
[1750071053879,32.31202833,156.34,156.33,0.28432314]
[1750071054769,32.31202833,156.34,156.33,6.68104801]
[1750071057281,6.31202833,156.34,156.33,6.68104801]
[1750071057481,4.7339625,156.37,156.35,0.28432314]
[1750071057686,4.7339625,156.39,156.35,0.28432314]
[1750071057886,6.31202833,156.38,156.35,0.28432314]
[1750071058299,6.31202833,156.39,156.37,18.933972]
[1750071059397,6.31202833,156.39,156.38,25.32865162]
[1750071060598,26.0,156.4,156.39,0.28432314]
[1750071060804,32.31202833,156.4,156.39,0.28432314]
[1750071061003,38.62405666,156.4,156.33,15.99086324]
[1750071061203,6.31202833,156.34,156.32,32.75713408]
[1750071061373,6.31202833,156.33,156.32,6.39713408]
[1750071061876,6.31202833,156.33,156.32,6.68145722]
[1750071062696,6.31202833,156.33,156.32,6.53929565]
[1750071063094,6.31202833,156.33,156.32,6.68145722]
[1750071086835,4.03773909,156.33,156.31,0.28432314]
[1750071087027,4.03773909,156.33,156.31,6.68148469]
[1750071087229,30.03773909,156.33,156.31,6.68148469]
[1750071087827,4.03773909,156.32,156.31,6.68148469]
[1750071095936,26.0,156.33,156.31,6.68148469]
[1750071096242,4.03773909,156.32,156.31,6.68148469]
[1750071109532,4.03773909,156.32,156.31,6.39716155]
[1750071110244,8.79002852,156.32,156.31,6.39716155]
[1750071110444,4.03773909,156.32,156.31,6.39716155]
[1750071110861,26.0,156.33,156.3,6.68227579]
[1750071111164,4.03773909,156.31,156.3,6.68227579]
[1750071116763,26.0,156.33,156.3,6.68227579]
[1750071116969,4.03773909,156.31,156.3,6.68227579]
[1750071118664,4.03773909,156.31,156.3,25.33192465]
[1750071118986,26.0,156.33,156.3,6.68227579]
[1750071119260,4.03773909,156.31,156.3,6.68227579]
[1750071120763,26.0,156.33,156.3,6.68227579]
[1750071121046,4.03773909,156.31,156.3,6.68227579]
[1750071122651,8.79115338,156.31,156.29,6.39819637]
[1750071122855,30.03773909,156.3,156.29,6.39819637]
[1750071123048,34.79041912,156.3,156.29,6.39819637]
[1750071123379,30.03773909,156.3,156.29,6.39819637]
[1750071123556,34.78822304,156.3,156.29,6.39819637]
[1750071123750,30.03773909,156.3,156.29,6.39819637]
[1750071124078,34.78822304,156.3,156.29,6.39819637]
[1750071124369,34.78590705,156.3,156.28,12.15866457]
[1750071124568,4.03773909,156.29,156.28,6.68298771]
[1750071125873,4.03773909,156.29,156.27,0.28432314]
[1750071126078,30.74719692,156.3,156.27,0.28432314]
[1750071126079,4.03773909,156.28,156.27,0.28432314]
[1750071127275,4.03773909,156.28,156.26,6.39959042]
[1750071127578,4.03773909,156.27,156.26,6.68391356]
[1750071131981,4.03773909,156.27,156.26,0.28432314]
[1750071132177,4.03773909,156.27,156.24,18.64964886]
[1750071132361,26.0,156.29,156.25,0.28432314]
[1750071132572,4.03773909,156.26,156.25,0.28432314]
[1750071132894,4.03773909,156.26,156.24,0.28432314]
[1750071133069,4.03773909,156.25,156.24,0.28432314]
[1750071133568,26.0,156.27,156.24,6.68473276]
[1750071133784,4.03773909,156.25,156.24,6.68473276]
[1750071135595,26.0,156.27,156.24,6.68473276]
[1750071135898,4.03773909,156.25,156.24,6.68473276]
[1750071136564,26.0,156.27,156.24,6.68473276]
[1750071136764,4.03773909,156.25,156.24,6.68473276]
[1750071137199,26.0,156.28,156.24,6.68473276]
[1750071137588,4.03773909,156.25,156.24,6.68473276]
[1750071139778,4.03773909,156.26,156.24,25.33438162]
[1750071140791,26.0,156.28,156.24,25.33438162]
[1750071141002,4.03773909,156.26,156.24,25.33438162]
[1750071141175,26.0,156.28,156.24,25.33438162]
[1750071141536,4.03773909,156.25,156.24,6.68473276]
[1750071141703,32.1794,156.29,156.24,6.40035139]
[1750071141866,4.03773909,156.25,156.24,6.40035139]
[1750071142387,36.90652277,156.29,156.24,6.40035139]
[1750071142595,4.03773909,156.25,156.24,6.40035139]
[1750071142892,32.1794,156.29,156.24,6.40035139]
[1750071143197,4.03773909,156.25,156.24,6.40035139]
[1750071143399,4.03773909,156.25,156.23,12.0406784]
[1750071143694,38.57780681,156.29,156.23,12.32500154]
[1750071143695,4.03773909,156.24,156.23,12.32500154]
[1750071146107,38.57780681,156.29,156.23,12.32500154]
[1750071146402,4.03773909,156.24,156.23,12.32500154]
[1750071146705,38.57780681,156.29,156.23,12.32500154]
[1750071146897,4.03773909,156.24,156.23,12.32500154]
[1750071147081,38.57780681,156.29,156.23,12.32500154]
[1750071147082,32.1794,156.29,156.23,12.32500154]
[1750071147508,4.03773909,156.25,156.23,12.32500154]
[1750071148509,36.90428719,156.29,156.24,0.28432314]
[1750071148804,4.03773909,156.26,156.24,0.28432314]
[1750071149303,26.0,156.27,156.25,6.4]
[1750071149482,4.03773909,156.26,156.25,6.4]
[1750071150081,4.03773909,156.26,156.25,6.68432314]
[1750071151412,4.03773909,156.26,156.23,5.64]
[1750071151599,46.18869545,156.24,156.23,5.64]
[1750071151792,46.18869545,156.24,156.21,6.40129706]
[1750071151990,4.03773909,156.22,156.21,6.40129706]
[1750071152791,4.03773909,156.22,156.21,6.54345863]
[1750071153516,4.03773909,156.22,156.21,6.6856202]
[1750071159517,26.0,156.24,156.21,6.6856202]
[1750071159718,1.552,156.26,156.21,6.6856202]
[1750071159719,4.03773909,156.22,156.21,6.6856202]
[1750071160609,26.0,156.24,156.21,6.6856202]
[1750071160814,4.03773909,156.22,156.21,6.6856202]
[1750071163325,30.03773909,156.22,156.21,6.6856202]
[1750071164825,4.03773909,156.22,156.19,6.40245854]
[1750071165008,4.03773909,156.2,156.19,6.40245854]
[1750071165524,4.03773909,156.2,156.19,6.68678168]
[1750071171112,4.03773909,156.2,156.19,25.33643054]
[1750071171610,26.0,156.23,156.2,0.28432314]
[1750071171820,4.03773909,156.21,156.2,0.28432314]
[1750071173407,4.03773909,156.21,156.2,6.68637179]
[1750071181128,30.03773909,156.21,156.17,6.40327847]
[1750071181431,4.03773909,156.18,156.17,6.54544004]
[1750071181734,26.0,156.21,156.17,6.54544004]
[1750071181936,38.04383909,156.18,156.16,0.2]
[1750071182122,26.0,156.12,156.07,1.2962333]
[1750071182322,4.03773909,156.08,156.07,1.2962333]
[1750071182712,47.80609545,156.08,156.07,1.2962333]
[1750071182936,40.28099806,156.08,156.07,1.2962333]
[1750071183251,40.28099806,156.08,156.02,2.74896533]
[1750071183252,26.0,156.04,156.02,2.74896533]
[1750071183417,26.0,156.04,156.02,9.15840001]
[1750071183616,6.33179903,156.04,156.02,7.15840001]
[1750071183823,6.33179903,156.03,156.02,25.80804887]
[1750071184244,6.33179903,156.05,156.04,0.14216157]
[1750071185148,6.33179903,156.05,156.02,7.15840001]
[1750071185321,6.33179903,156.04,156.02,7.15826565]
[1750071185519,6.33179903,156.05,156.03,0.14216157]
[1750071185723,6.33179903,156.05,156.03,0.28432314]
[1750071186019,32.33179903,156.04,156.02,0.74896533]
[1750071186347,6.33179903,156.03,156.02,0.74896533]
[1750071186570,26.0,156.04,156.02,7.15840001]
[1750071186844,6.33179903,156.03,156.02,7.15840001]
[1750071187018,6.33179903,156.05,156.02,7.15840001]
[1750071187220,14.37664375,156.06,156.03,18.933972]
[1750071187426,14.37664375,156.06,156.03,25.26577103]
[1750071187833,14.37664375,156.06,156.03,18.933972]
[1750071188342,14.37664375,156.06,156.05,18.64964886]
[1750071189221,14.37664375,156.06,156.05,6.40820249]
[1750071189725,6.33179903,156.08,156.06,0.28432314]
[1750071190531,6.33179903,156.08,156.05,6.40820249]
[1750071190532,6.33179903,156.08,156.07,6.69170444]
[1750071190853,26.0,156.11,156.07,6.69170444]
[1750071190854,6.33179903,156.09,156.07,6.69170444]
[1750071191034,6.33179903,156.08,156.07,6.69170444]
[1750071192033,6.33179903,156.09,156.07,6.69170444]
[1750071192636,6.33179903,156.09,156.08,0.28432314]
[1750071192841,6.33179903,156.1,156.08,18.933972]
[1750071193244,6.33179903,156.09,156.08,0.28432314]
[1750071193850,6.33179903,156.1,156.08,0.28432314]
[1750071194353,6.33179903,156.11,156.08,0.28432314]
[1750071194730,6.33179903,156.11,156.09,6.40656031]
[1750071195029,26.0,156.12,156.09,6.40656031]
[1750071195231,6.33179903,156.12,156.1,0.28432314]
[1750071196746,32.33179903,156.13,156.11,6.40573954]
[1750071197343,26.0,156.13,156.11,6.40573954]
[1750071197558,32.33179903,156.13,156.11,6.40573954]
[1750071198057,32.33179903,156.13,156.1,25.3401219]
[1750071198458,6.33179903,156.12,156.1,25.3401219]
[1750071198845,26.0,156.13,156.1,25.3401219]
[1750071199032,6.33179903,156.12,156.1,25.3401219]
[1750071199953,26.0,156.13,156.1,41.35549665]
[1750071200156,6.33179903,156.12,156.1,41.35549665]
[1750071200856,26.0,156.13,156.1,41.35549665]
[1750071201159,32.33179903,156.13,156.1,41.35549665]
[1750071201344,26.0,156.13,156.1,41.35549665]
[1750071202744,32.33179903,156.13,156.1,41.35549665]
[1750071204565,26.0,156.13,156.1,41.35549665]
[1750071204778,26.0,156.15,156.1,41.35549665]
[1750071204969,6.33179903,156.13,156.1,41.35549665]
[1750071205459,6.33179903,156.12,156.1,41.35549665]
[1750071206043,26.0,156.15,156.1,41.35549665]
[1750071206236,6.33179903,156.12,156.1,41.35549665]
[1750071206434,26.0,156.14,156.1,41.35549665]
[1750071206640,6.33179903,156.15,156.1,41.35549665]
[1750071206836,6.33179903,156.14,156.1,41.35549665]
[1750071207063,6.33179903,156.14,156.1,67.73549665]
[1750071208241,6.33179903,156.14,156.1,74.06729568]
[1750071208446,6.33179903,156.14,156.1,47.68729568]
[1750071209437,6.33179903,156.14,156.1,41.35549665]
[1750071211053,32.33179903,156.15,156.1,41.35549665]
[1750071211247,32.33179903,156.15,156.1,47.68729568]
[1750071211666,26.0,156.15,156.1,47.68729568]
[1750071211863,32.33179903,156.15,156.1,47.68729568]
[1750071213456,6.33179903,156.15,156.1,47.68729568]
[1750071213657,26.0,156.17,156.1,47.68729568]
[1750071213859,6.33179903,156.15,156.1,47.68729568]
[1750071214168,26.0,156.17,156.12,18.933972]
[1750071214371,6.33179903,156.16,156.12,18.933972]
[1750071214741,26.0,156.17,156.12,18.933972]
[1750071214945,6.33179903,156.16,156.12,25.26577103]
[1750071215142,6.33179903,156.15,156.12,18.933972]
[1750071215967,6.33179903,156.15,156.14,0.28432314]
[1750071216466,6.33179903,156.16,156.14,0.28432314]
[1750071218070,6.33179903,156.16,156.15,6.40409862]
[1750071218269,26.0,156.17,156.15,6.40409862]
[1750071218576,6.33179903,156.16,156.15,6.40409862]
[1750071219270,26.0,156.17,156.15,6.40409862]
[1750071219775,32.33179903,156.17,156.15,6.40409862]
[1750071219975,26.0,156.17,156.15,6.40409862]
[1750071220276,32.33179903,156.17,156.15,6.40409862]
[1750071220962,3.33804674,156.18,156.16,0.28432314]
[1750071221159,3.33804674,156.18,156.17,25.26577103]
[1750071221363,3.33804674,156.18,156.17,18.933972]
[1750071223067,3.33804674,156.18,156.17,25.33725047]
[1750071223282,9.66984577,156.18,156.17,6.68760161]
[1750071224969,3.33804674,156.18,156.17,6.68760161]
[1750071225883,9.66984577,156.18,156.17,6.68760161]
[1750071227583,6.33179903,156.18,156.17,6.68760161]
[1750071229668,6.33179903,156.19,156.17,6.68760161]
[1750071230294,1.6608,156.2,156.17,6.68760161]
[1750071230470,7.99259903,156.2,156.17,6.68760161]
[1750071230793,1.6608,156.2,156.17,6.68760161]
[1750071230963,6.33179903,156.18,156.17,6.68760161]
[1750071234779,6.33179903,156.19,156.17,6.68760161]
[1750071235876,6.33179903,156.18,156.17,6.68760161]
[1750071236501,1.6608,156.2,156.17,6.68760161]
[1750071236692,6.33179903,156.18,156.17,6.68760161]
[1750071238179,6.33179903,156.19,156.17,6.68760161]
[1750071241697,1.6608,156.2,156.17,6.68760161]
[1750071241872,6.33179903,156.19,156.17,6.68760161]
[1750071242394,1.6608,156.2,156.17,6.68760161]
[1750071242584,6.33179903,156.19,156.17,6.68760161]
[1750071243172,26.0,156.21,156.17,6.68760161]
[1750071243486,6.33179903,156.19,156.18,0.28432314]
[1750071244702,6.33179903,156.19,156.18,6.68719162]
[1750071245890,26.0,156.21,156.18,6.68719162]
[1750071246098,6.33179903,156.2,156.18,6.68719162]
[1750071246474,6.33179903,156.19,156.18,6.68719162]
[1750071246674,26.0,156.21,156.18,6.68719162]
[1750071246874,6.33179903,156.2,156.18,6.68719162]
[1750071247288,6.33179903,156.22,156.2,0.28432314]
[1750071247690,26.0,156.23,156.2,0.28432314]
[1750071248008,6.33179903,156.21,156.2,0.28432314]
[1750071248302,26.0,156.23,156.2,0.28432314]
[1750071248504,6.33179903,156.21,156.2,0.28432314]
[1750071248988,6.33179903,156.21,156.2,6.68637179]
[1750071251881,6.33179903,156.21,156.2,6.40204865]
[1750071253574,6.33179903,156.21,156.18,22.41003969]
[1750071253794,6.33179903,156.19,156.18,22.69436283]
[1750071256511,6.33179903,156.19,156.18,6.40286848]
[1750071257205,26.0,156.21,156.17,6.68760161]
[1750071257410,6.33179903,156.19,156.17,6.68760161]
[1750071257988,6.33179903,156.18,156.17,6.68760161]
[1750071258907,6.33179903,156.19,156.17,6.68760161]
[1750071263994,6.33179903,156.19,156.16,18.64964886]
[1750071263995,6.33179903,156.18,156.15,6.40409862]
[1750071264297,6.33179903,156.16,156.15,6.40409862]
[1750071265001,4.045568,156.16,156.15,6.40409862]
[1750071265983,4.045568,156.16,156.14,6.40450877]
[1750071266184,4.045568,156.15,156.14,6.68883191]
[1750071266830,6.32130978,156.15,156.14,6.68883191]
[1750071269496,4.74671742,156.18,156.14,6.68883191]
[1750071269692,6.32130978,156.16,156.14,6.68883191]
[1750071270219,6.32130978,156.15,156.14,6.68883191]
[1750071270627,4.74589122,156.2,156.14,6.68883191]
[1750071270826,6.32130978,156.15,156.14,6.68883191]
[1750071275304,6.32130978,156.15,156.13,5.64]
[1750071275505,6.32130978,156.14,156.09,18.64964886]
[1750071275727,6.32130978,156.16,156.09,18.64964886]
[1750071275728,6.32130978,156.11,156.09,18.64964886]
[1750071275923,6.32130978,156.11,156.1,0.14216157]
[1750071276420,6.32130978,156.11,156.1,25.3401219]
[1750071276625,6.32130978,156.12,156.1,6.69047304]
[1750071276834,6.32130978,156.13,156.1,6.69047304]
[1750071282543,6.32130978,156.12,156.1,6.69047304]
[1750071283643,11.14648974,156.17,156.1,6.69047304]
[1750071283828,6.32130978,156.13,156.1,6.69047304]
[1750071284325,6.32130978,156.12,156.1,6.69047304]
[1750071287051,6.32130978,156.16,156.12,6.68965237]
[1750071287225,6.32130978,156.13,156.12,6.68965237]
[1750071288932,4.04713675,156.13,156.12,6.68965237]
[1750071290467,4.74304793,156.17,156.12,6.68965237]
[1750071290627,4.04713675,156.13,156.12,6.68965237]
[1750071291545,4.74304793,156.17,156.12,6.68965237]
[1750071291727,4.04713675,156.13,156.12,6.68965237]
[1750071293043,4.74304793,156.17,156.12,6.68965237]
[1750071293349,4.04713675,156.13,156.12,25.33930123]
[1750071296043,39.07149047,156.18,156.12,25.33930123]
[1750071296243,4.04713675,156.13,156.12,25.33930123]
[1750071302756,4.04713675,156.13,156.09,18.64964886]
[1750071302960,16.188547,156.16,156.09,18.64964886]
[1750071302961,4.04713675,156.11,156.09,18.64964886]
[1750071303336,4.04713675,156.11,156.1,0.28432314]
[1750071303556,4.04713675,156.11,156.1,0.14216157]
[1750071303949,4.04713675,156.11,156.1,0.28432314]
[1750071304135,4.04713675,156.12,156.1,0.28432314]
[1750071304554,4.04713675,156.12,156.11,6.69006268]
[1750071306158,26.0,156.15,156.11,6.69006268]
[1750071306360,4.04713675,156.12,156.11,6.69006268]
[1750071308180,4.74255077,156.14,156.11,6.69006268]
[1750071308384,4.04713675,156.12,156.11,6.69006268]
[1750071309440,4.74255077,156.14,156.11,6.69006268]
[1750071309646,4.04713675,156.13,156.11,6.69006268]
[1750071309856,4.04713675,156.12,156.11,6.69006268]
[1750071314670,4.74760227,156.14,156.11,6.69006268]
[1750071314671,4.74768417,156.14,156.11,6.69006268]
[1750071314870,4.04713675,156.12,156.11,6.69006268]
[1750071316681,4.04713675,156.13,156.11,6.69006268]
[1750071317475,4.04713675,156.12,156.11,6.69006268]
[1750071318150,4.74879383,156.14,156.11,6.69006268]
[1750071318479,4.04713675,156.12,156.11,6.69006268]
[1750071320487,4.04713675,156.13,156.11,6.69006268]
[1750071321364,4.04713675,156.12,156.11,6.69006268]
[1750071321652,4.04713675,156.13,156.11,6.69006268]
[1750071324067,26.0,156.14,156.12,0.28432314]
[1750071324377,8.79734564,156.13,156.12,0.28432314]
[1750071325277,8.79734564,156.13,156.12,6.68965237]
[1750071327377,8.79734564,156.13,156.12,6.40532923]
[1750071327958,36.42364564,156.13,156.04,6.40861317]
[1750071328169,4.04713675,156.06,156.04,22.42914225]
[1750071328477,4.04713675,156.05,156.04,22.42914225]
[1750071328662,4.04713675,156.06,156.05,0.28432314]
[1750071328862,4.04713675,156.06,156.05,18.933972]
[1750071329163,4.04713675,156.09,156.05,22.83894718]
[1750071329376,4.04713675,156.09,156.08,0.14216157]
[1750071329979,26.0,156.12,156.08,0.14216157]
[1750071330275,4.04713675,156.09,156.08,0.14216157]
[1750071331479,4.04713675,156.09,156.08,25.34094278]
[1750071331982,4.04713675,156.1,156.09,0.14216157]
[1750071332469,1.6263,156.13,156.1,0.14216157]
[1750071332673,4.04713675,156.12,156.1,0.14216157]
[1750071333468,4.04713675,156.12,156.11,6.40573954]
[1750071333869,26.0,156.14,156.11,6.40573954]
[1750071334070,4.04713675,156.12,156.11,6.40573954]
[1750071334586,4.04713675,156.12,156.11,22.42008839]
[1750071334964,26.0,156.14,156.11,22.42008839]
[1750071335163,4.04713675,156.12,156.11,22.42008839]
[1750071336376,4.04713675,156.12,156.11,22.70441153]
[1750071336722,26.0,156.14,156.11,22.70441153]
[1750071336899,4.04713675,156.12,156.11,22.70441153]
[1750071338707,26.0,156.14,156.11,22.70441153]
[1750071338878,4.04713675,156.12,156.11,22.70441153]
[1750071340276,26.0,156.14,156.11,22.70441153]
[1750071340584,4.04713675,156.12,156.11,22.70441153]
[1750071341183,26.0,156.14,156.11,22.70441153]
[1750071341384,8.78908116,156.13,156.11,22.70441153]
[1750071341586,4.04713675,156.12,156.11,22.70441153]
[1750071343994,4.04713675,156.13,156.11,22.70441153]
[1750071345378,4.04713675,156.12,156.11,22.42008839]
[1750071345579,4.04713675,156.12,156.11,6.40573954]
[1750071346188,8.78966391,156.12,156.09,6.69088345]
[1750071346397,4.04713675,156.1,156.09,6.69088345]
[1750071347401,26.0,156.13,156.09,22.70728424]
[1750071347599,4.04713675,156.1,156.09,22.70728424]
[1750071348309,4.04713675,156.1,156.09,22.4229611]
[1750071349610,4.04713675,156.1,156.09,16.01640079]
[1750071352907,4.74221461,156.11,156.1,0.28432314]
[1750071353215,4.74221461,156.12,156.1,0.28432314]
[1750071353411,4.04713675,156.11,156.1,0.28432314]
[1750071353802,4.04713675,156.11,156.1,6.69047304]
[1750071354189,4.74158909,156.12,156.1,6.69047304]
[1750071354190,26.0,156.15,156.1,6.69047304]
[1750071354395,4.74178705,156.14,156.1,22.70584779]
[1750071354598,8.7889238,156.13,156.1,22.70584779]
[1750071354904,4.04713675,156.13,156.1,22.70584779]
[1750071355103,8.7894179,156.13,156.1,22.70584779]
[1750071355293,4.04713675,156.13,156.1,22.70584779]
[1750071355492,8.7894179,156.13,156.1,22.70584779]
[1750071355794,4.04713675,156.13,156.1,22.70584779]
[1750071356215,26.0,156.15,156.1,22.70584779]
[1750071356420,4.04713675,156.13,156.1,22.70584779]
[1750071357118,4.04713675,156.13,156.12,6.68965237]
[1750071357322,8.79073555,156.13,156.12,6.68965237]
[1750071359128,4.7435988,156.13,156.12,6.68965237]
[1750071359425,8.79073555,156.13,156.12,6.68965237]
[1750071361027,4.7435988,156.13,156.12,6.68965237]
[1750071361804,4.04713675,156.14,156.12,6.68965237]
[1750071362037,26.0,156.15,156.12,22.70297545]
[1750071362236,4.74389325,156.14,156.12,22.70297545]
[1750071362444,4.04713675,156.14,156.12,22.70297545]
[1750071362733,4.04713675,156.16,156.14,0.28432314]
[1750071362931,4.04713675,156.16,156.15,6.68842176]
[1750071364405,4.04713675,156.16,156.15,6.40409862]
[1750071364717,8.79059914,156.16,156.15,6.40409862]
[1750071365242,4.74346239,156.16,156.15,6.40409862]
[1750071365430,8.79059914,156.17,156.15,6.68842176]
[1750071365732,4.04713675,156.17,156.15,6.40409862]
[1750071365934,8.78958776,156.17,156.15,0.28432314]
[1750071366113,4.74245101,156.17,156.15,0.28432314]
[1750071366312,8.78958776,156.17,156.15,0.28432314]
[1750071366610,8.78958776,156.17,156.15,18.933972]
[1750071366819,4.04713675,156.18,156.15,18.933972]
[1750071367636,4.74164017,156.19,156.15,18.933972]
[1750071367814,4.04713675,156.18,156.15,18.933972]
[1750071368236,4.04713675,156.18,156.17,0.28432314]
[1750071369702,4.04713675,156.18,156.17,6.68760161]
[1750071373037,4.04713675,156.19,156.17,22.6957978]
[1750071381951,4.04713675,156.19,156.17,22.6957978]
[1750071383634,4.04713675,156.2,156.17,22.6957978]
[1750071384428,4.04713675,156.21,156.17,26.74293455]
[1750071390545,173.0,156.22,156.17,26.74293455]
[1750071390750,4.04713675,156.21,156.17,26.74293455]
[1750071391447,173.0,156.22,156.17,26.74293455]
[1750071391625,4.04713675,156.21,156.17,26.74293455]
[1750071392442,30.04713675,156.22,156.19,0.28432314]
[1750071392755,4.04713675,156.23,156.19,4.33145989]
[1750071393118,4.04713675,156.23,156.19,0.28432314]
[1750071393323,4.04713675,156.23,156.19,4.33145989]
[1750071393750,4.04713675,156.23,156.19,4.12666989]
[1750071394251,4.04713675,156.23,156.19,22.48813804]
[1750071394553,26.0,156.24,156.19,22.48813804]
[1750071394554,4.04713675,156.22,156.19,22.48813804]
[1750071396040,4.04713675,156.23,156.2,18.79181043]
[1750071396446,4.04713675,156.23,156.21,6.40163881]
[1750071396648,26.0,156.24,156.21,22.40573585]
[1750071397038,4.04713675,156.23,156.21,22.40573585]
[1750071397861,26.0,156.24,156.21,22.40573585]
[1750071398153,4.04713675,156.23,156.21,22.40573585]
[1750071401773,26.0,156.24,156.21,22.40573585]
[1750071401964,4.04713675,156.23,156.21,22.40573585]
[1750071403030,30.7304027,156.24,156.21,22.40573585]
[1750071403230,4.04713675,156.23,156.21,22.40573585]
[1750071403867,8.77753945,156.23,156.21,22.40573585]
[1750071404233,4.04713675,156.23,156.21,22.40573585]
[1750071404954,8.77753945,156.23,156.21,22.40573585]
[1750071407357,4.04713675,156.22,156.21,22.40573585]
[1750071408575,27.613,156.2,156.13,6.40491897]
[1750071408876,4.04713675,156.14,156.13,22.41721641]
[1750071409041,4.04713675,156.14,156.13,6.40491897]
[1750071409674,8.78312204,156.14,156.11,41.06973725]
[1750071409849,4.04713675,156.12,156.11,41.35406039]
[1750071410248,4.04713675,156.12,156.11,41.06973725]
[1750071410560,4.04713675,156.12,156.11,41.35406039]
[1750071410948,6.3245741,156.12,156.11,41.35406039]
[1750071413844,32.3245741,156.16,156.11,41.35406039]
[1750071414155,6.3245741,156.12,156.11,41.35406039]
[1750071418565,6.3245741,156.13,156.11,41.35406039]
[1750071418878,6.3245741,156.14,156.12,0.28432314]
[1750071419552,6.3245741,156.14,156.13,6.40491897]
[1750071421871,6.3356199,156.2,156.14,18.64964886]
[1750071422050,6.3245741,156.16,156.14,18.64964886]
[1750071422353,6.3245741,156.17,156.14,44.80964886]
[1750071422556,6.3245741,156.2,156.16,18.64964886]
[1750071422765,6.3245741,156.2,156.16,44.80964886]
[1750071423581,6.3245741,156.2,156.17,0.28432314]
[1750071424072,173.0,156.22,156.17,0.28432314]
[1750071424262,173.0,156.22,156.18,22.41003969]
[1750071424263,6.3245741,156.2,156.18,22.41003969]
[1750071425276,173.0,156.22,156.18,22.41003969]
[1750071425581,6.3245741,156.2,156.18,22.41003969]
[1750071430162,6.3245741,156.21,156.18,22.41003969]
[1750071432961,6.3245741,156.22,156.19,18.933972]
[1750071433983,6.3245741,156.22,156.2,6.40204865]
[1750071435363,6.3245741,156.21,156.2,22.40717028]
[1750071436063,6.3245741,156.21,156.18,54.42438211]
[1750071438194,6.3245741,156.21,156.18,80.58438211]
[1750071440387,6.3245741,156.19,156.18,22.41003969]
[1750071444273,6.3245741,156.19,156.18,16.00717121]
[1750071446696,6.3245741,156.19,156.17,32.01533244]
[1750071446888,6.3245741,156.18,156.17,32.01533244]
[1750071452810,4.04413543,156.18,156.17,32.01533244]
[1750071456712,4.04413543,156.19,156.17,18.933972]
[1750071457010,4.04413543,156.19,156.17,45.073972]
[1750071457187,4.04413543,156.2,156.17,45.073972]
[1750071457588,4.04413543,156.2,156.18,6.40286848]
[1750071458895,4.04413543,156.2,156.18,22.41003969]
[1750071462589,26.0,156.21,156.18,22.41003969]
[1750071462789,4.04413543,156.2,156.18,22.41003969]